bitfinex-derivatives/quotes_SOLF0:USTF0_20250106
["timestamp","ask_amount","ask_price","bid_price","bid_amount"]
[1736166848395,2.304,217.09,217.06,2.3042]
[1736166851194,2.304,217.09,217.05,9.49375489]
[1736166853899,2.304,217.09,217.07,7.18935489]
[1736166854197,2.3038,217.1,217.07,7.18935489]
[1736166854399,8.62545489,217.17,217.09,7.18935489]
[1736166854588,2.6,217.16,217.09,9.49325489]
[1736166854788,7.18935489,217.15,217.09,9.49325489]
[1736166854996,2.3036,217.13,217.09,9.49325489]
[1736166855601,2.3036,217.13,217.09,2.3039]
[1736166855800,7.18935489,217.15,217.01,1.5025]
[1736166856003,7.18935489,217.15,217.07,7.18935489]
[1736166856299,2.304,217.09,217.07,7.18935489]
[1736166856503,2.6,217.08,217.07,7.18935489]
[1736166861206,2.6,217.08,217.07,9.49355489]
[1736166862003,2.3042,217.07,217.03,2.3046]
[1736166862208,2.3042,217.07,217.05,7.18935489]
[1736166863009,2.6,217.08,217.05,7.18935489]
[1736166863305,4.9041,217.08,217.05,7.18935489]
[1736166863504,4.9041,217.08,217.05,9.49365489]
[1736166864405,2.6,217.08,217.05,9.49365489]
[1736166864598,2.3042,217.07,217.05,9.49365489]
[1736166865610,4.9041,217.08,217.05,9.49365489]
[1736166866611,2.3042,217.07,217.04,2.3045]
[1736166870713,2.6,217.08,217.04,2.3045]
[1736166870916,2.3043,217.06,217.04,2.3045]
[1736166871508,2.6,217.11,217.04,7.18935489]
[1736166871711,2.6,217.11,217.01,1.5025]
[1736166871907,2.6,217.11,217.05,7.18935489]
[1736166872117,2.304,217.09,217.05,9.49365489]
[1736166873711,2.304,217.09,217.05,7.18935489]
[1736166873907,2.304,217.09,217.06,2.3042]
[1736166874420,2.3043,217.07,217.03,7.18935489]
[1736166874617,2.6,217.06,217.03,7.18935489]
[1736166874920,2.6,217.06,216.99,1.4027]
[1736166875120,2.6,217.06,217.02,7.18935489]
[1736166875418,2.6,217.06,217.04,2.3045]
[1736166876315,2.6,217.06,216.91,25.44274432]
[1736166876520,2.6,217.06,216.99,2.3049]
[1736166876521,2.3046,217.03,216.99,2.3049]
[1736166876721,2.3046,217.03,216.99,9.49425489]
[1736166877121,2.3045,217.04,217.0,2.3049]
[1736166877416,7.18935489,217.08,217.01,7.18935489]
[1736166877622,2.6,217.07,217.01,7.18935489]
[1736166877818,2.869,217.09,217.03,7.18935489]
[1736166878018,2.6,217.08,217.03,7.18935489]
[1736166879620,4.9041,217.08,217.04,2.3045]
[1736166882324,7.18935489,217.11,217.05,2.3043]
[1736166882525,2.304,217.09,217.05,2.3043]
[1736166883023,4.9039,217.1,217.05,7.18935489]
[1736166883827,4.9039,217.1,217.07,2.3041]
[1736166884129,2.6,217.09,217.07,7.18935489]
[1736166884327,2.6,217.09,217.08,2.3041]
[1736166884620,2.6,217.09,217.07,7.18935489]
[1736166885127,2.3035,217.13,217.1,2.3038]
[1736166885323,2.6,217.12,217.1,2.3038]
[1736166886026,2.58,217.11,217.1,2.3038]
[1736166887525,2.58,217.11,217.1,6.4838]
[1736166888127,2.58,217.11,217.1,4.18]
[1736166889328,12.07305489,217.11,217.1,4.18]
[1736166892032,2.3044,217.05,216.99,7.18935489]
[1736166892227,2.3044,217.05,216.94,4.611]
[1736166892228,2.58,217.04,216.95,1.5227]
[1736166892422,2.58,217.04,216.99,7.18935489]
[1736166892727,2.58,217.04,217.02,2.3047]
[1736166894728,4.8845,217.04,217.01,2.3048]
[1736166897030,2.3046,217.03,217.0,9.49425489]
[1736166897227,2.3046,217.03,217.0,2.3049]
[1736166900940,2.58,217.04,217.0,7.18935489]
[1736166901340,2.58,217.05,217.0,7.18935489]
[1736166901838,2.58,217.05,217.02,2.3046]
[1736166904241,2.3044,217.06,217.0,7.18935489]
[1736166904437,2.58,217.07,217.06,2.3042]
[1736166908741,2.58,217.09,217.08,2.304]
[1736166909343,2.58,217.1,217.08,2.304]
[1736166910444,2.58,217.1,217.09,6.9639]
[1736166914549,1.426,217.17,217.09,4.66]
[1736166914854,2.3033,217.15,217.12,2.3035]
[1736166915053,9.49265489,217.15,217.12,2.3035]
[1736166916353,2.58,217.14,217.12,2.3035]
[1736166916755,9.49265489,217.15,217.12,2.3035]
[1736166916953,4.8833,217.15,217.12,2.3035]
[1736166918354,2.3035,217.13,217.1,2.3038]
[1736166920557,2.58,217.15,217.09,4.66]
[1736166920757,6.08963051,217.19,217.09,4.66]
[1736166921058,7.18935489,217.16,217.09,4.66]
[1736166921459,2.3033,217.15,217.11,2.3037]
[1736166922452,9.49275489,217.14,217.11,2.3037]
[1736166922759,2.58,217.13,217.11,2.3037]
[1736166924262,12.07275489,217.14,217.11,2.3037]
[1736166925462,12.07275489,217.14,217.12,2.3036]
[1736166925961,4.8834,217.14,217.12,2.3036]
[1736166926364,4.8834,217.14,217.11,2.3037]
[1736166927566,2.58,217.14,217.11,2.3037]
[1736166928459,7.18935489,217.13,217.03,2.9176]
[1736166928661,7.18935489,217.13,217.05,7.18935489]
[1736166929164,7.18935489,217.13,217.1,2.3037]
[1736166930469,9.49285489,217.13,217.1,2.3037]
[1736166934772,2.3035,217.13,217.1,2.3037]
[1736166934968,9.49285489,217.13,217.1,2.3037]
[1736166936070,9.49285489,217.13,217.07,7.18935489]
[1736166936370,9.49285489,217.13,217.11,2.3037]
[1736166936668,2.58,217.14,217.07,7.18935489]
[1736166936873,2.58,217.14,217.13,2.3035]
[1736166938473,2.3032,217.17,217.11,7.18935489]
[1736166938670,9.49235489,217.18,217.15,2.3033]
[1736166938866,2.58,217.17,217.13,7.18935489]
[1736166939272,1.3835,217.23,217.13,7.18935489]
[1736166939474,7.18935489,217.21,217.13,7.18935489]
[1736166939675,7.18935489,217.21,217.2,2.3028]
[1736166940682,9.76935489,217.21,217.2,2.3028]
[1736166942279,1.3835,217.23,217.15,7.18935489]
[1736166942480,1.3835,217.23,217.07,1.4613]
[1736166942481,2.58,217.23,217.17,7.18935489]
[1736166942782,2.58,217.24,217.17,7.18935489]
[1736166943385,2.58,217.24,217.23,2.3024]
[1736166944389,3.455811,217.3,217.28,2.3019]
[1736166944589,4.89988512,217.35,217.23,7.18935489]
[1736166944885,7.18935489,217.32,217.25,7.18935489]
[1736166945592,9.74935489,217.32,217.29,2.3018]
[1736166945891,9.74935489,217.32,217.25,7.18935489]
[1736166947288,9.74935489,217.32,217.3,2.3017]
[1736166948390,9.74935489,217.32,217.29,2.3018]
[1736166948594,9.74935489,217.32,217.25,7.18935489]
[1736166949092,2.56,217.32,217.25,7.18935489]
[1736166949287,2.56,217.32,217.31,2.3016]
[1736166949486,7.18935489,217.33,217.31,2.3016]
[1736166949692,3.746,217.35,217.27,7.18935489]
[1736166949693,9.80935489,217.35,217.27,7.18935489]
[1736166949881,9.80935489,217.35,217.33,2.3013]
[1736166950587,7.18935489,217.35,217.33,2.3013]
[1736166950785,9.80935489,217.35,217.33,2.3013]
[1736166951498,9.80935489,217.35,217.31,2.3015]
[1736166951791,7.18935489,217.33,217.31,2.3015]
[1736166954691,7.18935489,217.33,217.24,7.18935489]
[1736166954893,7.18935489,217.31,217.29,2.3017]
[1736166955895,7.18935489,217.31,217.3,2.3017]
[1736166956595,2.62,217.32,217.3,2.3017]
[1736166963295,7.18935489,217.31,217.2,5.4839]
[1736166963599,2.62,217.32,217.22,7.18935489]
[1736166963794,2.62,217.32,217.24,7.18935489]
[1736166964000,9.80935489,217.32,217.24,7.18935489]
[1736166965500,9.80935489,217.32,217.3,2.3016]
[1736166966099,9.80935489,217.32,217.24,7.18935489]
[1736166966303,9.80935489,217.32,217.26,7.18935489]
[1736166966803,7.18935489,217.34,217.33,2.3014]
[1736166967200,7.18935489,217.34,217.32,2.3015]
[1736166967698,7.18935489,217.34,217.28,7.18935489]
[1736166967903,7.18935489,217.34,217.33,2.3014]
[1736166973704,7.18935489,217.36,217.28,7.18935489]
[1736166973906,2.62,217.35,217.3,7.18935489]
[1736166974202,7.18935489,217.36,217.3,7.18935489]
[1736166974905,7.18935489,217.36,217.35,2.3012]
[1736166976709,2.62,217.37,217.36,2.3011]
[1736166977206,1.3993,217.45,217.37,2.3009]
[1736166977207,7.18935489,217.38,217.37,2.3009]
[1736166977409,9.76935489,217.38,217.37,2.3009]
[1736166977603,9.76935489,217.38,217.3,7.18935489]
[1736166978709,9.76935489,217.38,217.36,2.3011]
[1736166979709,9.76935489,217.38,217.37,2.301]
[1736166980403,4.85266105,217.45,217.32,7.18935489]
[1736166980610,7.18935489,217.38,217.36,2.3011]
[1736166980809,9.76935489,217.38,217.36,2.3011]
[1736166981505,9.76935489,217.38,217.3,7.18935489]
[1736166981709,7.18935489,217.36,217.27,1.5007]
[1736166981910,7.18935489,217.36,217.28,7.18935489]
[1736166982111,9.49045489,217.36,217.34,2.3013]
[1736166983111,2.58,217.38,217.34,2.3013]
[1736166983304,9.49035489,217.37,217.34,2.3013]
[1736166985212,2.58,217.38,217.37,2.301]
[1736166985411,9.76935489,217.38,217.37,2.301]
[1736166985608,9.76935489,217.38,217.29,7.18935489]
[1736166985812,7.18935489,217.36,217.29,7.18935489]
[1736166986808,2.58,217.38,217.31,7.18935489]
[1736166987008,7.18935489,217.39,217.31,7.18935489]
[1736166987208,2.58,217.38,217.31,7.18935489]
[1736166987913,2.58,217.38,217.37,2.301]
[1736166990416,2.58,217.38,217.35,2.3011]
[1736166990815,2.58,217.38,217.31,7.18935489]
[1736166991317,12.07025489,217.38,217.36,2.3011]
[1736166992112,9.76935489,217.38,217.36,2.3011]
[1736166993724,9.76935489,217.38,217.3,7.18935489]
[1736166994018,9.76935489,217.38,217.37,2.301]
[1736166994607,2.301,217.37,217.34,2.3012]
[1736166994906,7.18935489,217.35,217.28,7.18935489]
[1736166995817,7.18935489,217.35,217.34,2.3013]
[1736166998013,2.58,217.38,217.36,2.3011]
[1736166998213,7.18935489,217.37,217.36,2.3011]
[1736166999009,2.58,217.38,217.36,2.3011]
[1736166999214,9.76935489,217.38,217.36,2.3011]
[1736166999416,9.76935489,217.38,217.37,2.301]
[1736167002614,9.76935489,217.38,217.37,6.471]
[1736167006025,9.76935489,217.38,217.37,4.17]
[1736167011920,12.07025489,217.38,217.37,4.17]
[1736167015737,2.3016,217.32,217.26,7.18935489]
[1736167015938,2.56,217.31,217.21,2.8533]
[1736167016230,2.56,217.31,217.27,2.302]
[1736167016231,7.18935489,217.3,217.27,2.302]
[1736167016839,4.8616,217.31,217.28,2.3019]
[1736167017038,2.56,217.31,217.28,2.3019]
[1736167019335,2.56,217.31,217.3,2.3017]
[1736167022138,2.56,217.31,217.21,2.8533]
[1736167022440,160.43046416,217.44,217.29,7.18935489]
[1736167022642,7.18935489,217.41,217.33,7.18935489]
[1736167022842,2.56,217.4,217.33,7.18935489]
[1736167023538,128.34437133,217.41,217.33,7.18935489]
[1736167023736,2.56,217.4,217.37,7.18935489]
[1736167023936,2.56,217.4,217.39,2.3008]
[1736167024138,2.56,217.42,217.37,7.18935489]
[1736167024344,7.18935489,217.44,217.37,7.18935489]
[1736167024544,9.74935489,217.44,217.37,7.18935489]
[1736167025245,5.75290916,217.47,217.39,7.18935489]
[1736167025246,2.56,217.45,217.39,7.18935489]
[1736167026142,7.18935489,217.44,217.39,7.18935489]
[1736167026544,7.18935489,217.44,217.4,2.3006]
[1736167026840,7.18935489,217.44,217.37,7.18935489]
[1736167027649,7.18935489,217.44,217.4,2.3007]
[1736167028649,4.8601,217.45,217.4,2.3007]
[1736167028947,7.18935489,217.43,217.4,2.3007]
[1736167030149,7.18935489,217.43,217.41,2.3005]
[1736167031639,7.18935489,217.43,217.4,2.3007]
[1736167031845,7.18935489,217.43,217.31,6.8831]
[1736167032045,7.18935489,217.41,217.31,6.8831]
[1736167032246,7.18935489,217.41,217.37,2.3009]
[1736167032450,7.18935489,217.41,217.34,7.18935489]
[1736167033553,7.18935489,217.41,217.38,2.3008]
[1736167034149,7.18935489,217.43,217.36,7.18935489]
[1736167035358,7.18935489,217.43,217.41,2.3006]
[1736167035655,9.74935489,217.45,217.38,7.18935489]
[1736167035846,7.18935489,217.45,217.42,2.3004]
[1736167036050,2.56,217.44,217.42,2.3004]
[1736167036956,2.56,217.44,217.38,7.18935489]
[1736167037152,2.56,217.45,217.38,7.18935489]
[1736167037753,52.68,217.48,217.38,7.18935489]
[1736167037951,9.74935489,217.46,217.4,7.18935489]
[1736167038152,7.18935489,217.46,217.4,7.18935489]
[1736167038758,6.71617068,217.57,217.44,7.18935489]
[1736167038759,3.45172298,217.56,217.44,7.18935489]
[1736167038955,9.74935489,217.5,217.44,7.18935489]
[1736167039555,9.74935489,217.5,217.42,7.18935489]
[1736167040459,9.74935489,217.5,217.47,2.2998]
[1736167040759,7.18935489,217.48,217.41,7.18935489]
[1736167042060,7.18935489,217.48,217.36,2.56]
[1736167042360,7.18935489,217.48,217.41,7.18935489]
[1736167043054,7.18935489,217.46,217.39,7.18935489]
[1736167043560,7.18935489,217.44,217.39,7.18935489]
[1736167043954,7.18935489,217.44,217.43,2.3003]
[1736167044560,7.18935489,217.46,217.44,2.3002]
[1736167046866,7.18935489,217.47,217.45,2.3001]
[1736167047476,9.48935489,217.47,217.43,2.3002]
[1736167047664,9.48935489,217.47,217.41,7.18935489]
[1736167048470,7.18935489,217.47,217.41,7.18935489]
[1736167048871,2.56,217.48,217.41,7.18935489]
[1736167049870,2.56,217.51,217.43,7.18935489]
[1736167050070,9.74935489,217.51,217.43,7.18935489]
[1736167050369,7.18935489,217.51,217.45,7.18935489]
[1736167050560,4.28092153,217.58,217.45,7.18935489]
[1736167050760,7.18935489,217.53,217.45,7.18935489]
[1736167050965,2.56,217.52,217.45,7.18935489]
[1736167051170,2.56,217.52,217.5,2.2996]
[1736167053466,2.56,217.53,217.47,7.18935489]
[1736167054569,2.56,217.53,217.52,2.2993]
[1736167054966,2.56,217.54,217.53,2.2993]
[1736167055173,9.74935489,217.54,217.53,2.2993]
[1736167056166,9.74935489,217.54,217.52,2.2994]
[1736167056676,4.28092153,217.58,217.47,7.18935489]
[1736167056870,2.299,217.56,217.53,2.2992]
[1736167057171,7.18935489,217.54,217.53,2.2992]
[1736167057566,2.56,217.55,217.53,2.2992]
[1736167057762,7.18935489,217.54,217.53,2.2992]
[1736167058069,7.18935489,217.54,217.47,7.18935489]
[1736167058271,4.28092153,217.58,217.47,7.18935489]
[1736167058565,7.18935489,217.54,217.47,7.18935489]
[1736167059468,7.18935489,217.54,217.53,2.2993]
[1736167061366,2.299,217.56,217.47,7.18935489]
[1736167061367,2.56,217.57,217.5,2.2996]
[1736167061566,7.18935489,217.55,217.47,7.18935489]
[1736167061763,7.18935489,217.55,217.49,7.18935489]
[1736167061963,7.18935489,217.55,217.54,2.2992]
[1736167070280,7.18935489,217.55,217.51,2.2995]
[1736167070281,9.48855489,217.55,217.51,2.2995]
[1736167070479,7.18935489,217.53,217.51,2.2995]
[1736167070676,9.48865489,217.53,217.5,2.2996]
[1736167071679,7.18935489,217.53,217.51,2.2995]
[1736167071871,7.18935489,217.54,217.48,7.18935489]
[1736167072478,4.859,217.57,217.54,2.2991]
[1736167072881,7.18935489,217.56,217.54,2.2991]
[1736167074476,128.34437133,217.67,217.43,4.6007]
[1736167074477,128.34437133,217.68,217.52,7.18935489]
[1736167074677,7.18935489,217.6,217.54,7.18935489]
[1736167075083,2.56,217.63,217.54,7.18935489]
[1736167075384,7.18935489,217.6,217.48,2.9257]
[1736167075683,9.74935489,217.6,217.53,7.18935489]
[1736167076387,12.04795489,217.6,217.53,7.18935489]
[1736167077483,12.04795489,217.6,217.56,2.2989]
[1736167077682,2.56,217.6,217.53,7.18935489]
[1736167078087,9.74935489,217.6,217.53,7.18935489]
[1736167078586,9.74935489,217.6,217.48,2.9257]
[1736167078787,9.74935489,217.6,217.58,2.2987]
[1736167079087,9.74935489,217.6,217.53,7.18935489]
[1736167079483,9.74935489,217.6,217.57,2.2989]
[1736167081986,7.18935489,217.58,217.55,2.299]
[1736167082486,9.48815489,217.58,217.55,2.299]
[1736167084294,7.18935489,217.56,217.55,2.299]
[1736167084593,9.48815489,217.58,217.5,7.18935489]
[1736167084794,9.48815489,217.58,217.56,2.299]
[1736167086091,9.48815489,217.58,217.55,2.299]
[1736167088995,7.18935489,217.58,217.55,2.299]
[1736167089192,7.18935489,217.59,217.56,2.2989]
[1736167089496,7.18935489,217.59,217.56,6.68]
[1736167089692,4.8586,217.6,217.56,6.68]
[1736167089896,7.18935489,217.59,217.57,2.2988]
[1736167091396,9.48805489,217.59,217.57,2.2988]
[1736167092698,2.56,217.59,217.57,2.2988]
[1736167094699,2.56,217.59,217.58,2.2988]
[1736167095198,2.56,217.59,217.56,6.68]
[1736167095501,2.56,217.59,217.57,2.2988]
[1736167096099,4.8587,217.59,217.57,2.2988]
[1736167096508,2.56,217.59,217.57,2.2988]
[1736167097694,2.56,217.6,217.58,2.2988]
[1736167098910,12.04785489,217.61,217.58,2.2987]
[1736167099206,3.45026462,217.62,217.56,13.86935489]
[1736167099505,2.56,217.62,217.61,2.2984]
[1736167100205,12.04755489,217.64,217.61,2.2984]
[1736167102504,9.74935489,217.64,217.61,2.2984]
[1736167103298,9.48755489,217.64,217.61,2.2984]
[1736167103504,2.56,217.63,217.61,2.2984]
[1736167103909,2.2985,217.61,217.58,2.2987]
[1736167104209,7.18935489,217.6,217.56,6.68]
[1736167104393,2.2987,217.59,217.56,8.9789]
[1736167105105,7.18935489,217.6,217.56,6.68]
[1736167106003,2.2989,217.58,217.56,6.68]
[1736167106806,7.18935489,217.62,217.56,16.16825489]
[1736167107000,2.56,217.63,217.58,7.18935489]
[1736167107208,7.18935489,217.66,217.6,7.18935489]
[1736167107406,6.00978874,217.68,217.62,7.18935489]
[1736167107601,3.44978874,217.68,217.66,7.18935489]
[1736167107805,128.34437133,217.69,217.68,2.2977]
[1736167108107,128.34437133,217.69,217.68,9.48705489]
[1736167108301,2.56,217.7,217.66,9.48725489]
[1736167108498,2.56,217.7,217.68,7.18935489]
[1736167108698,128.34437133,217.74,217.68,7.18935489]
[1736167108898,128.34437133,217.74,217.7,7.18935489]
[1736167109301,2.56,217.74,217.7,7.18935489]
[1736167109504,2.56,217.74,217.62,2.8575]
[1736167109704,7.18935489,217.72,217.65,7.18935489]
[1736167109900,7.18935489,217.7,217.65,7.18935489]
[1736167110105,2.56,217.69,217.65,7.18935489]
[1736167110506,4.8576,217.69,217.65,7.18935489]
[1736167110703,2.56,217.69,217.58,2.56]
[1736167110906,2.298,217.66,217.64,7.18935489]
[1736167111110,2.298,217.66,217.62,9.48765489]
[1736167111406,2.56,217.69,217.64,2.2981]
[1736167111608,2.56,217.69,217.64,9.48745489]
[1736167112109,4.8576,217.69,217.64,9.48745489]
[1736167112910,4.8576,217.69,217.64,7.18935489]
[1736167113210,4.8576,217.69,217.65,2.298]
[1736167118618,2.2977,217.68,217.65,2.298]
[1736167119320,4.8576,217.69,217.65,2.298]
[1736167119523,3.44846256,217.78,217.68,7.18935489]
[1736167119718,160.43046416,217.84,217.78,7.18935489]
[1736167119916,160.43046416,217.84,217.81,7.18935489]
[1736167120112,160.43046416,217.84,217.81,9.48565489]
[1736167120721,2.56,217.86,217.81,7.18935489]
[1736167121021,2.56,217.86,217.83,9.48535489]
[1736167121225,3.44616285,217.92,217.85,7.18935489]
[1736167121519,2.56,217.91,217.85,7.18935489]
[1736167121719,8.61385489,217.93,217.85,7.18935489]
[1736167121920,3.29510624,217.92,217.85,7.18935489]
[1736167122117,2.56,217.92,217.77,2.56]
[1736167122419,7.18935489,217.91,217.84,7.18935489]
[1736167122815,1.4245,217.93,217.84,7.18935489]
[1736167123118,1.4245,217.93,217.86,7.18935489]
[1736167123317,9.48465489,217.91,217.84,2.2959]
[1736167123516,7.18935489,217.91,217.83,7.18935489]
[1736167124019,2.2954,217.9,217.83,9.48545489]
[1736167124324,7.18935489,217.89,217.82,7.18935489]
[1736167124722,2.2955,217.9,217.82,9.48545489]
[1736167124919,7.18935489,217.91,217.84,7.18935489]
[1736167125228,7.18935489,217.89,217.79,1.3835]
[1736167125523,7.18935489,217.89,217.83,7.18935489]
[1736167126324,2.2957,217.88,217.83,7.18935489]
[1736167126518,2.56,217.99,217.87,7.18935489]
[1736167126714,7.18935489,217.96,217.89,7.18935489]
[1736167127019,2.56,217.96,217.89,7.18935489]
[1736167127220,2.56,217.96,217.92,2.2952]
[1736167128020,2.2946,217.97,217.92,2.2952]
[1736167128320,2.56,217.96,217.9,9.48465489]
[1736167129127,4.8548,217.96,217.9,9.48465489]
[1736167129526,2.2948,217.96,217.9,9.48465489]
[1736167129827,9.84935489,217.95,217.89,7.18935489]
[1736167130420,9.84935489,217.95,217.84,1.3729]
[1736167130616,7.18935489,217.93,217.84,1.3729]
[1736167130824,7.18935489,217.93,217.86,7.18935489]
[1736167131025,2.2953,217.91,217.88,7.18935489]
[1736167131922,2.66,217.95,217.85,7.18935489]
[1736167132118,7.18935489,217.93,217.86,7.18935489]
[1736167132824,2.2953,217.91,217.86,7.18935489]
[1736167133025,2.2953,217.91,217.83,11.13037675]
[1736167133230,2.66,217.95,217.83,11.13037675]
[1736167133530,2.66,217.95,217.84,2.2959]
[1736167133728,2.66,217.95,217.83,11.13037675]
[1736167134728,2.2955,217.89,217.85,2.2959]
[1736167134932,2.66,217.9,217.83,11.13037675]
[1736167135322,4.9554,217.9,217.83,11.13037675]
[1736167135734,2.66,217.9,217.83,11.13037675]
[1736167135936,2.2956,217.88,217.83,11.13037675]
[1736167136231,2.66,217.9,217.64,2.66]
[1736167136232,11.13037675,217.86,217.64,2.66]
[1736167136432,11.13037675,217.82,217.7,1.4724]
[1736167136829,2.66,217.85,217.7,1.4724]
[1736167136830,13.79037675,217.85,217.7,1.4724]
[1736167137230,2.2967,217.78,217.72,2.2972]
[1736167137434,2.2967,217.78,217.7,1.4724]
[1736167137833,2.2968,217.77,217.7,1.4724]
[1736167139540,2.66,217.79,217.72,11.13037675]
[1736167139731,4.9566,217.79,217.72,11.13037675]
[1736167140431,4.9566,217.79,217.74,2.2971]
[1736167140731,2.2967,217.78,217.74,2.2971]
[1736167142737,2.2967,217.78,217.73,11.13037675]
[1736167143039,2.2967,217.78,217.73,13.42757675]
[1736167143235,2.2967,217.78,217.73,11.13037675]
[1736167144434,2.2967,217.78,217.74,2.2971]
[1736167145238,2.7997,217.87,217.76,11.13037675]
[1736167145739,2.66,217.86,217.76,11.13037675]
[1736167145942,2.296,217.85,217.8,2.2964]
[1736167147342,2.2961,217.84,217.8,2.2964]
[1736167147544,2.66,217.86,217.76,11.13037675]
[1736167147945,2.2959,217.85,217.81,2.2963]
[1736167150241,2.66,217.86,217.79,11.13037675]
[1736167150450,2.66,217.86,217.83,2.2961]
[1736167150646,2.66,217.85,217.83,2.2961]
[1736167151244,4.956,217.85,217.8,2.2964]
[1736167151745,4.956,217.85,217.79,11.13037675]
[1736167152048,4.956,217.85,217.82,2.2962]
[1736167152248,4.956,217.85,217.79,11.13037675]
[1736167153450,2.66,217.85,217.71,70.94788602]
[1736167153643,2.66,217.85,217.77,11.13037675]
[1736167154253,2.66,217.85,217.74,11.13037675]
[1736167154450,2.66,217.85,217.76,2.2968]
[1736167155151,2.2964,217.81,217.77,9.42671574]
[1736167155341,2.66,217.8,217.77,9.42671574]
[1736167155748,2.2966,217.79,217.77,7.13001574]
[1736167156454,2.2966,217.79,217.76,7.13001574]
[1736167157853,2.66,217.8,217.78,7.13001574]
[1736167159451,2.66,217.8,217.79,2.2965]
[1736167160947,2.66,217.81,217.78,7.13001574]
[1736167161153,2.66,217.81,217.8,2.2963]
[1736167161556,2.66,217.81,217.8,9.42631574]
[1736167162354,2.2958,217.86,217.8,7.13001574]
[1736167162552,2.66,217.85,217.82,9.42621574]
[1736167163753,4.956,217.85,217.82,9.42621574]
[1736167164957,2.296,217.84,217.82,7.13001574]
[1736167165653,2.296,217.84,217.82,9.42621574]
[1736167165849,2.66,217.85,217.82,9.42621574]
[1736167166053,2.66,217.85,217.83,2.2961]
[1736167168262,11.46161574,217.89,217.84,7.13001574]
[1736167168263,2.8721,217.89,217.84,7.13001574]
[1736167168558,2.2956,217.88,217.86,7.13001574]
[1736167168762,2.66,217.87,217.86,7.13001574]
[1736167169562,4.9558,217.87,217.84,7.13001574]
[1736167169967,2.2958,217.87,217.84,7.13001574]
[1736167170169,2.66,217.86,217.84,9.42601574]
[1736167170466,2.66,217.86,217.73,1.5149]
[1736167170871,7.13001574,217.85,217.73,1.5149]
[1736167171067,7.13001574,217.85,217.77,7.13001574]
[1736167171366,2.2964,217.81,217.78,2.2966]
[1736167171563,2.66,217.8,217.78,2.2966]
[1736167175672,4.9564,217.8,217.77,9.42671574]
[1736167176965,2.66,217.8,217.78,2.2966]
[1736167182265,4.9565,217.8,217.77,7.13001574]
[1736167182465,9.79001574,217.8,217.71,70.94788602]
[1736167182672,7.13001574,217.78,217.71,70.94788602]
[1736167182969,2.66,217.8,217.71,2.2974]
[1736167182970,2.2972,217.74,217.71,2.2974]
[1736167183175,4.9572,217.74,217.71,2.2974]
[1736167183871,4.9572,217.74,217.64,7.82536194]
[1736167183872,2.66,217.74,217.69,7.13001574]
[1736167184170,2.2973,217.72,217.69,2.2976]
[1736167184377,9.79001574,217.74,217.67,7.13001574]
[1736167184569,2.2975,217.7,217.66,2.2978]
[1736167184776,7.13001574,217.72,217.58,10.35786194]
[1736167184971,2.66,217.74,217.68,7.13001574]
[1736167185178,9.79001574,217.74,217.68,7.13001574]
[1736167185479,2.2972,217.73,217.68,9.42761574]
[1736167185675,9.79001574,217.74,217.67,7.13001574]
[1736167185874,2.2974,217.72,217.67,9.42771574]
[1736167186368,9.79001574,217.74,217.67,9.42771574]
[1736167186676,2.2975,217.7,217.67,7.13001574]
[1736167186870,2.66,217.69,217.67,7.13001574]
[1736167187178,2.66,217.69,217.66,7.13001574]
[1736167189176,2.66,217.69,217.68,9.42771574]
[1736167190675,2.66,217.69,217.66,2.2979]
[1736167190873,2.66,217.69,217.66,9.42791574]
[1736167191479,2.2975,217.7,217.66,9.42791574]
[1736167191679,2.64,217.68,217.66,9.42791574]
[1736167193772,2.64,217.68,217.59,1.505]
[1736167193977,4.9377,217.68,217.65,7.13001574]
[1736167194272,2.64,217.68,217.65,7.13001574]
[1736167195480,2.64,217.68,217.65,9.42791574]
[1736167196180,4.9378,217.68,217.65,2.2979]